bitfinex/quotes_ETHUSD_20240924
["timestamp","ask_amount","ask_price","bid_price","bid_amount"]
[1727209224836,0.78743269,2652.5,2652.1,8.3362552]
[1727209225039,0.78743269,2652.6,2652.1,8.3362552]
[1727209225240,5.50208559,2652.6,2652.1,8.3362552]
[1727209225465,4.55732269,2652.6,2652.1,4.5657452]
[1727209225667,3.76989,2652.6,2652.1,4.5657452]
[1727209225826,0.78743269,2652.7,2652.3,0.7973]
[1727209226027,3.7697,2652.8,2652.3,7.684002]
[1727209226250,3.76975,2652.7,2652.3,3.913702]
[1727209227068,0.78743269,2652.8,2652.3,3.913702]
[1727209227250,2.52039787,2652.8,2652.3,4.6821472]
[1727209227451,2.52039787,2652.8,2652.3,8.52784618]
[1727209227651,2.52039787,2652.8,2652.4,3.77016]
[1727209228454,2.52039787,2652.8,2652.6,3.76987]
[1727209228664,6.14144227,2653.1,2652.7,6.886142]
[1727209228665,0.78743269,2652.9,2652.7,6.886142]
[1727209228881,0.78743269,2653.0,2652.7,7.66202539]
[1727209229082,1.22033115,2653.1,2652.7,7.66202539]
[1727209229083,0.82566559,2653.1,2652.7,7.66202539]
[1727209229367,0.82566559,2653.1,2652.8,4.61549254]
[1727209229570,0.0382329,2653.1,2652.8,4.69087657]
[1727209229769,0.82566559,2653.1,2652.9,3.76944]
[1727209229991,0.82566559,2653.1,2653.0,6.885712]
[1727209229992,0.0382329,2653.1,2653.0,6.885712]
[1727209230290,0.0382329,2653.1,2653.0,8.71797412]
[1727209230492,0.0382329,2653.1,2653.0,5.60157212]
[1727209231795,0.0382329,2653.1,2653.0,5.67757023]
[1727209233892,0.0382329,2653.1,2653.0,8.79397223]
[1727209235518,0.0382329,2653.1,2653.0,1.90826023]
[1727209238985,0.0382329,2653.1,2653.0,0.87329811]
[1727209242721,3.8074029,2653.1,2653.0,0.07599811]
[1727209242925,4.52943,2653.0,2652.6,0.8287]
[1727209243289,3.76947,2652.9,2652.6,0.8287]
[1727209243984,0.7601,2653.0,2652.6,0.8287]
[1727209244186,7.5766929,2653.1,2652.6,8.3936042]
[1727209244386,7.5766829,2653.1,2652.6,8.3936042]
[1727209244629,3.8074129,2653.1,2652.6,8.3936042]
[1727209244791,7.5766829,2653.1,2652.6,8.3936042]
[1727209245528,3.76932,2653.0,2652.6,8.3936042]
[1727209245704,3.76932,2653.0,2652.6,5.2772022]
[1727209246227,3.8074129,2653.1,2652.6,5.2772022]
[1727209246525,7.5766829,2653.1,2652.6,5.2772022]
[1727209246727,3.76936,2653.0,2652.6,5.2772022]
[1727209247831,3.8074129,2653.1,2652.6,5.2772022]
[1727209248140,3.8074129,2653.1,2652.6,9.0470622]
[1727209248427,7.5766829,2653.1,2652.6,5.2772022]
[1727209248638,3.76934,2653.0,2652.6,5.2772022]
[1727209249002,3.8074129,2653.1,2652.6,5.2772022]
[1727209249528,3.8074129,2653.1,2652.6,9.0470722]
[1727209250231,3.8074129,2653.1,2652.6,9.0470022]
[1727209250393,3.8074129,2653.1,2652.7,0.43239246]
[1727209250590,7.5766829,2653.1,2652.7,0.43239246]
[1727209250795,2.8074129,2653.1,2652.7,0.43239246]
[1727209250995,8.16743269,2653.5,2652.7,0.43239246]
[1727209251226,3.76926,2653.1,2652.7,0.43239246]
[1727209251727,7.53851,2653.1,2652.7,0.43239246]
[1727209251935,3.76932,2653.0,2652.7,0.43239246]
[1727209252230,3.76932,2653.0,2652.6,0.8287]
[1727209253637,7.53871,2653.0,2652.6,0.8287]
[1727209253809,3.76974,2652.7,2652.6,0.8287]
[1727209254007,3.76974,2652.7,2651.8,3.116402]
[1727209254008,3.77012,2652.5,2652.0,3.77066]
[1727209254226,7.54022,2652.5,2652.1,0.8056]
[1727209254413,3.7701,2652.5,2652.1,0.87041003]
[1727209254797,3.7701,2652.5,2652.1,0.8056]
[1727209255041,3.7701,2652.5,2652.2,3.0]
[1727209255413,3.7701,2652.5,2652.3,0.06489199]
[1727209255642,3.76982,2652.7,2652.3,0.06489199]
[1727209255934,3.76982,2652.7,2652.3,1.14817874]
[1727209256302,3.76991,2652.6,2652.3,1.14817874]
[1727209258342,3.76991,2652.6,2652.3,0.06489199]
[1727209259699,3.76982,2652.7,2652.3,0.06489199]
[1727209259700,3.77002,2652.5,2652.4,0.8056]
[1727209259968,3.77002,2652.5,2652.4,0.06483278]
[1727209260127,3.77002,2652.5,2652.2,0.8056]
[1727209260322,3.77002,2652.5,2652.4,0.06483733]
[1727209260540,3.77002,2652.5,2652.2,0.8056]
[1727209260541,3.77002,2652.5,2652.3,0.06488288]
[1727209260727,3.77002,2652.5,2652.2,0.8056]
[1727209260907,3.77015,2652.5,2652.4,0.06483733]
[1727209261104,1.36293269,2652.7,2652.2,0.8056]
[1727209261105,3.77017,2652.4,2652.2,0.8056]
[1727209261362,3.77017,2652.4,2651.6,0.8056]
[1727209261363,0.377017,2652.4,2651.6,0.8056]
[1727209261640,3.77077,2652.0,2651.6,0.8056]
[1727209262345,3.77124,2651.7,2651.3,0.8056]
[1727209262732,3.77132,2651.6,2651.3,0.8056]
[1727209264211,3.77132,2651.6,2651.1,9.888332]
[1727209264212,3.77145,2651.5,2651.1,0.8056]
[1727209265453,3.77145,2651.5,2651.2,3.0]
[1727209265751,6.65899514,2651.5,2650.8,0.8056]
[1727209265912,7.69643314,2651.5,2650.8,0.8056]
[1727209266107,7.69758851,2651.5,2650.8,0.8056]
[1727209266516,8.0910987,2651.5,2650.8,0.8056]
[1727209266975,8.0910987,2651.5,2650.8,4.57803]
[1727209267124,6.8644474,2651.5,2650.9,3.116402]
[1727209267619,6.07598018,2651.5,2651.4,2.55893414]
[1727209267823,6.86456229,2651.5,2651.4,2.55893414]
[1727209268063,2.51762146,2651.5,2651.4,2.55893414]
[1727209268220,0.69159218,2651.5,2651.4,2.55893414]
[1727209269241,8.33129128,2651.6,2651.4,2.55893414]
[1727209269617,7.5427,2651.6,2651.4,2.55893414]
[1727209269813,8.33129128,2651.6,2651.4,2.55893414]
[1727209270150,4.55991128,2651.6,2651.4,2.55893414]
[1727209270325,3.77145,2651.5,2651.4,2.55893414]
[1727209270817,4.55991128,2651.6,2651.4,2.55893414]
[1727209271013,3.77145,2651.5,2651.4,2.55893414]
[1727209273167,5.13527128,2651.7,2651.4,2.55893414]
[1727209273371,3.77138,2651.6,2651.4,2.55893414]
[1727209274445,4.34668,2651.7,2651.4,2.55893414]
[1727209274649,3.77145,2651.5,2651.4,2.55893414]
[1727209279549,3.77145,2651.5,2651.4,2.5]
[1727209279975,3.77145,2651.5,2651.4,2.55949458]
[1727209280563,3.77131,2651.6,2651.4,3.35519458]
[1727209280761,3.77145,2651.5,2651.4,2.55949458]
[1727209280987,3.77132,2651.6,2651.4,2.55949458]
[1727209281156,3.77113,2651.8,2651.4,2.55949458]
[1727209281594,3.77124,2651.7,2651.4,2.55949458]
[1727209281886,1.36409128,2652.0,2651.4,3.27219304]
[1727209282090,3.77075,2652.0,2651.5,3.912102]
[1727209282293,4.34606,2652.2,2651.7,6.887482]
[1727209282537,3.77056,2652.2,2651.7,7.6557902]
[1727209282789,3.77056,2652.2,2651.9,0.7957]
[1727209283174,3.77059,2652.1,2652.0,0.05975883]
[1727209285294,3.77059,2652.1,2651.7,0.7683182]
[1727209285465,3.77085,2652.0,2651.7,0.7683182]
[1727209285666,3.77086,2652.0,2651.8,0.05954459]
[1727209285867,3.77073,2652.0,2651.8,0.05954459]
[1727209286069,3.77073,2652.0,2651.7,0.7683182]
[1727209286304,3.77073,2652.0,2651.9,0.05940789]
[1727209286957,3.77073,2652.0,2651.6,0.7957]
[1727209286958,3.77095,2651.9,2651.6,0.7957]
[1727209287159,3.77079,2652.0,2651.4,0.5]
[1727209287472,7.5428,2651.6,2651.4,0.5]
[1727209287670,3.77138,2651.6,2651.4,0.5]
[1727209287984,3.77145,2651.5,2651.4,0.5]
[1727209289362,3.77131,2651.6,2651.4,0.5]
[1727209289862,3.77131,2651.6,2651.4,1.0]
[1727209290424,7.54247,2651.7,2651.4,1.0]
[1727209292497,3.77132,2651.6,2651.4,1.0]
[1727209293847,3.77132,2651.6,2651.4,1.5]
[1727209293848,4.34695,2651.5,2651.4,1.5]
[1727209293988,6.85287873,2651.5,2651.4,1.5]
[1727209294485,6.8529072,2651.5,2651.4,1.5]
[1727209294710,6.2774072,2651.5,2651.4,1.5]
[1727209294912,4.45838498,2651.5,2651.4,1.5]
[1727209295400,5.48891724,2651.5,2651.4,1.5599821]
[1727209295726,6.27753699,2651.5,2651.4,1.5599821]
[1727209296528,6.27875854,2651.5,2651.4,1.5599821]
[1727209297776,5.49013879,2651.5,2651.4,1.5599821]
[1727209298576,6.67223704,2651.5,2651.4,1.5599821]
[1727209298777,1.72113953,2651.5,2651.4,2.3607821]
[1727209299068,1.72113953,2651.5,2651.4,2.59686031]
[1727209299069,2.51059925,2651.5,2651.4,2.59686031]
[1727209299268,2.51059925,2651.5,2651.4,2.3607821]
[1727209301863,1.72113953,2651.5,2651.4,2.3607821]
[1727209302267,5.49258953,2651.5,2651.4,2.3607821]
[1727209302499,2.90323778,2651.5,2651.4,2.3607821]
[1727209303504,2.90510495,2651.5,2651.4,2.3607821]
[1727209304563,4.67937663,2651.5,2651.4,2.3607821]
[1727209304958,8.45082663,2651.5,2651.4,2.3607821]
[1727209305203,8.8638549,2651.5,2651.4,1.5599821]
[1727209305404,9.83810564,2651.5,2651.4,1.5]
[1727209305703,7.86229553,2651.5,2651.4,1.5]
[1727209306803,11.52869753,2651.5,2651.4,1.00927734]
[1727209307011,11.52869753,2651.5,2650.7,0.0382329]
[1727209307012,3.77244,2650.8,2650.7,0.0382329]
[1727209307211,9.42882527,2650.8,2650.7,0.0382329]
[1727209307560,7.45025726,2650.8,2650.7,0.0382329]
[1727209307781,7.45025726,2650.8,2650.7,0.09682901]
[1727209307782,9.42457802,2650.8,2650.7,0.09682901]
[1727209307990,9.42457802,2650.8,2650.7,0.0382329]
[1727209308191,8.45297698,2650.8,2650.7,0.0382329]
[1727209308396,8.45297698,2650.8,2650.7,0.09683813]
[1727209308569,10.26949925,2650.8,2650.7,0.09683813]
[1727209308769,8.29057396,2650.8,2650.7,0.09683813]
[1727209309303,10.26859421,2650.8,2650.7,0.0382329]
[1727209309791,8.29057396,2650.8,2650.7,0.09683813]
[1727209309994,8.84817298,2650.8,2650.7,0.09683813]
[1727209310196,6.87015273,2650.8,2650.7,0.09683813]
[1727209310493,8.84817298,2650.8,2650.7,0.09683813]
[1727209310695,3.09771273,2650.8,2650.7,0.09683813]
[1727209311004,4.67968267,2650.8,2650.7,0.09683813]
[1727209311165,3.09289922,2650.8,2650.7,0.09683813]
[1727209311498,2.90460975,2650.8,2650.7,0.09683813]
[1727209312388,2.90404653,2650.8,2650.7,0.09683813]
[1727209312920,2.90404653,2650.8,2650.7,0.49824214]
[1727209313083,0.68713558,2650.8,2650.7,4.27082214]
[1727209313479,0.79063421,2650.9,2650.8,3.77244]
[1727209313722,0.79063421,2650.9,2650.7,0.49824214]
[1727209313723,1.47767299,2650.9,2650.7,4.27073214]
[1727209313944,1.18620758,2651.0,2650.8,0.05863716]
[1727209314068,1.7105773,2650.9,2650.8,0.05863716]
[1727209314276,2.50114948,2650.9,2650.7,4.21217691]
[1727209314481,0.79057218,2650.9,2650.8,0.05855507]
[1727209314782,0.79057218,2650.9,2650.7,4.21217691]
[1727209314971,1.47473545,2650.9,2650.8,0.05855507]
[1727209315169,1.71040874,2650.9,2650.8,8.0848974]
[1727209315411,0.79057218,2651.0,2650.9,3.7723]
[1727209315617,2.50086408,2651.0,2650.9,4.5862]
[1727209315779,2.50080403,2651.0,2650.9,0.05674679]
[1727209315979,3.80057867,2651.0,2650.7,0.0382329]
[1727209316207,3.77244,2650.8,2650.7,0.0382329]
[1727209316413,6.66892151,2650.8,2650.7,0.0382329]
[1727209316600,6.85162036,2650.8,2650.7,0.0382329]
[1727209316918,6.85248,2650.8,2650.7,0.0382329]
[1727209317111,9.94317702,2650.8,2650.7,0.0382329]
[1727209317416,8.36120708,2650.8,2650.7,0.0382329]
[1727209318335,10.51867702,2650.8,2650.7,0.0382329]
[1727209319126,10.9127676,2650.8,2650.7,0.0382329]
[1727209320879,10.91139339,2650.8,2650.7,0.0382329]
[1727209321311,8.93590068,2650.8,2650.7,0.0382329]
[1727209323797,10.90985433,2650.8,2650.7,0.0382329]
[1727209324001,10.90985525,2650.8,2650.7,0.0382329]
[1727209324202,8.93590068,2650.8,2650.7,0.0382329]
[1727209324403,10.90974729,2650.8,2650.7,0.0382329]
[1727209324901,7.22557351,2650.8,2650.7,0.0382329]
[1727209325097,10.90863306,2650.8,2650.7,0.0382329]
[1727209325704,10.90863306,2650.8,2649.9,0.0382329]
[1727209325705,3.77338,2650.2,2649.9,0.0382329]
[1727209326050,3.77358,2650.0,2649.9,0.0382329]
[1727209326840,3.77338,2650.2,2649.9,0.0382329]
[1727209327049,3.77347,2650.1,2649.9,0.0382329]
[1727209327248,0.78929182,2650.3,2650.0,0.8203]
[1727209327406,3.7728,2650.6,2650.3,0.8203]
[1727209327407,0.78929182,2650.6,2650.3,0.8203]
[1727209327847,3.77273,2650.6,2650.3,0.8203]
[1727209328141,3.77322,2650.3,2650.1,0.8203]
[1727209328301,3.77301,2650.4,2650.1,0.8203]
[1727209328805,4.56223182,2650.5,2650.1,0.8203]
[1727209329040,3.7731,2650.4,2650.1,0.8203]
[1727209329526,4.56223182,2650.5,2650.1,0.8203]
[1727209329840,8.33521182,2650.5,2650.1,0.8203]
[1727209330016,8.33519182,2650.5,2650.1,0.8203]
[1727209330340,4.56223182,2650.5,2650.1,0.8203]
[1727209330539,0.68330607,2650.4,2650.1,0.8203]
[1727209330707,8.33518182,2650.5,2650.2,0.0578448]
[1727209330907,4.56223182,2650.5,2650.2,0.0578448]
[1727209332039,0.6833841,2650.4,2650.2,0.0578448]
[1727209332738,4.56223182,2650.5,2650.2,0.0578448]
[1727209333240,8.33519182,2650.5,2650.2,0.0578448]
[1727209333440,4.56223182,2650.5,2650.2,0.0578448]
[1727209333931,1.7088611,2650.4,2650.2,0.0578448]
[1727209334306,1.7088611,2650.4,2650.2,0.52301628]
[1727209334500,1.7088611,2650.4,2650.3,3.77315]
[1727209334746,1.7088611,2650.4,2650.3,4.59345]
[1727209335041,0.78929182,2650.5,2650.3,4.6512583]
[1727209335342,0.78929182,2650.5,2650.3,0.8781083]
[1727209336313,0.68358975,2650.5,2650.3,0.8781083]
[1727209336718,1.47288157,2650.6,2650.3,0.8781083]
[1727209338304,0.78929182,2650.6,2650.3,0.8781083]
[1727209339210,4.56202182,2650.6,2650.3,0.8781083]
[1727209339622,0.78929182,2650.6,2650.3,0.8781083]
[1727209339820,0.78929182,2650.6,2650.3,1.72058513]
[1727209340019,4.56204182,2650.6,2650.3,0.8781083]
[1727209340218,3.77301,2650.4,2650.3,0.0578083]
[1727209340554,3.77321,2650.3,2649.9,0.8585329]
[1727209341146,0.5755,2650.5,2649.9,0.8585329]
[1727209341147,3.77337,2650.2,2649.9,0.8585329]
[1727209341315,0.377337,2650.2,2649.9,0.8585329]
[1727209341535,3.77311,2650.4,2649.9,10.7485749]
[1727209341719,3.77311,2650.4,2649.9,3.8585329]
[1727209341920,3.77331,2650.2,2649.9,3.8585329]
[1727209342156,3.77319,2650.3,2649.9,3.8585329]
[1727209342443,3.7733,2650.2,2649.9,3.8585329]
[1727209342675,3.77316,2650.3,2649.9,3.8585329]
[1727209343209,3.77336,2650.2,2649.9,3.8585329]
[1727209343549,3.77336,2650.2,2649.9,0.8585329]
[1727209344506,3.77336,2650.2,2649.9,3.8585329]
[1727209344712,3.77317,2650.3,2649.9,3.8585329]
[1727209345452,3.77333,2650.2,2649.9,3.8585329]
[1727209345660,3.77333,2650.2,2650.0,0.05784493]
[1727209345950,3.77344,2650.1,2650.0,0.05784493]
[1727209347327,6.27369325,2650.1,2650.0,0.05784493]
[1727209347532,7.27839258,2650.1,2650.0,0.05784493]
[1727209347876,9.43651135,2650.1,2650.0,0.05784493]
[1727209348167,10.40883418,2650.1,2650.0,0.05784493]
[1727209348367,3.77358,2650.0,2649.9,0.0382329]
[1727209348667,10.80509892,2650.0,2649.9,0.0382329]
[1727209348877,12.3408418,2650.0,2649.9,0.0382329]
[1727209349229,16.97281319,2650.0,2649.9,0.0382329]
[1727209349463,16.97281319,2650.0,2649.1,0.0382329]
[1727209349464,3.77472,2649.2,2649.1,0.0382329]
[1727209349779,5.27158557,2649.2,2649.1,0.0382329]
[1727209350078,4.45910457,2649.2,2649.1,0.09676194]
[1727209350366,2.50128101,2649.2,2649.1,0.09676194]
[1727209350677,4.56490429,2649.3,2649.1,0.09676194]
[1727209351168,0.68473646,2649.2,2649.1,0.09676194]
[1727209351537,4.56490429,2649.3,2649.1,0.09676194]
[1727209351873,3.77459,2649.3,2649.1,0.09676194]
[1727209352228,0.79031429,2649.3,2649.1,0.09676194]
[1727209352429,1.71204533,2649.3,2649.1,0.09676194]
[1727209352703,0.79031429,2649.4,2649.1,0.09676194]
[1727209352704,0.79031429,2649.4,2649.2,3.116402]
[1727209352875,4.95970144,2649.6,2649.3,0.8203]
[1727209352876,1.47488825,2649.5,2649.3,0.8203]
[1727209353034,0.79031429,2649.6,2649.3,0.87908869]
[1727209353662,2.50156302,2649.6,2649.3,0.87908869]
[1727209353866,0.68454755,2649.5,2649.3,0.87908869]
[1727209354102,0.79031429,2649.6,2649.3,0.87908869]
[1727209354283,4.56449429,2649.6,2649.3,0.87908869]
[1727209354586,0.68447502,2649.5,2649.3,0.87908869]
[1727209355292,0.52489693,2649.4,2649.3,0.05878869]
[1727209355453,6.80064844,2649.4,2649.1,0.8585329]
[1727209355656,5.08964122,2649.4,2649.1,0.8585329]
[1727209355861,5.08964122,2649.4,2649.2,0.05877507]
[1727209356252,4.29932693,2649.4,2649.2,0.05877507]
[1727209356989,0.52489693,2649.4,2649.2,0.05877507]
[1727209357200,0.79031429,2649.5,2649.2,0.05877507]
[1727209357488,4.56455429,2649.6,2649.2,0.05877507]
[1727209357723,0.6840832,2649.5,2649.2,0.05877507]
[1727209357849,4.56455429,2649.6,2649.2,0.05877507]
[1727209358051,0.68408288,2649.5,2649.2,0.05877507]
[1727209359291,2.50069911,2649.5,2649.2,0.05877507]
[1727209359492,4.56455429,2649.6,2649.2,0.05877507]
[1727209359700,0.68415141,2649.5,2649.2,0.05877507]
[1727209359855,4.56455429,2649.6,2649.2,0.05877507]
[1727209360195,2.50090348,2649.5,2649.2,0.05877507]
[1727209360356,0.79031429,2649.5,2649.2,0.05877507]
[1727209360557,4.56455429,2649.6,2649.2,0.05877507]
[1727209360773,0.68426318,2649.5,2649.2,0.05877507]
[1727209361172,2.50124412,2649.5,2649.2,0.05877507]
[1727209361384,0.68444091,2649.4,2649.2,0.05877507]
[1727209361608,0.79031429,2649.5,2649.2,0.05877507]
[1727209361798,6.27567458,2649.5,2649.2,0.05877507]
[1727209362003,0.68441829,2649.4,2649.2,0.05877507]
[1727209362199,4.56463429,2649.5,2649.2,0.05877507]
[1727209362507,1.71138381,2649.4,2649.2,0.05877507]
[1727209362810,2.5016981,2649.4,2649.2,0.05877507]
[1727209363010,0.79031429,2649.4,2649.2,0.05877507]
[1727209363312,7.02365636,2649.4,2649.2,0.05877507]
[1727209363487,0.68507012,2649.3,2649.2,0.05877507]
[1727209363682,4.45965012,2649.3,2649.2,0.05877507]
[1727209363908,5.48734688,2649.3,2649.2,0.05877507]
[1727209364115,5.71557428,2649.3,2649.2,0.05877507]
[1727209364287,6.74337932,2649.3,2649.2,0.05877507]
[1727209364490,5.71557428,2649.3,2649.2,0.05877507]
[1727209364815,6.74341468,2649.3,2649.2,0.05877507]
[1727209364986,5.71566849,2649.3,2649.2,0.05877507]
[1727209365319,6.74345687,2649.3,2649.2,0.05877507]
[1727209365608,5.71566849,2649.3,2649.2,0.05877507]
[1727209365911,6.74342981,2649.3,2649.2,0.05877507]
[1727209366099,7.5337441,2649.3,2649.2,0.05877507]
[1727209366301,5.71566849,2649.3,2649.2,0.05877507]
[1727209366500,7.5337411,2649.3,2649.2,0.05877507]
[1727209366818,5.71566849,2649.3,2649.2,0.05877507]
[1727209367498,7.86891313,2649.3,2649.2,0.05877507]
[1727209367714,3.7757,2648.6,2648.3,0.0382329]
[1727209367917,0.79026742,2648.7,2648.3,0.0382329]
[1727209368229,1.36576742,2648.8,2648.5,3.77561]
[1727209368429,1.36576742,2648.8,2648.3,3.8141429]
[1727209368579,0.68510714,2648.7,2648.3,3.8141429]
[1727209368778,2.50306057,2648.7,2648.3,3.8141429]
[1727209369120,0.79026742,2648.7,2648.4,0.8027]
[1727209369318,6.27861368,2648.7,2648.4,0.8027]
[1727209369488,3.77574,2648.5,2648.3,0.0382329]
[1727209369811,4.46081744,2648.4,2648.3,0.0382329]
[1727209370014,5.48829679,2648.4,2648.3,0.0382329]
[1727209370325,6.67369792,2648.4,2648.3,0.0382329]
[1727209370473,6.2778258,2648.4,2648.3,0.0382329]
[1727209370678,6.93453772,2648.4,2648.3,0.0382329]
[1727209371375,0.78952901,2648.5,2648.3,0.0382329]
[1727209371578,4.56489901,2648.8,2648.4,0.792]
[1727209371811,0.68495063,2648.7,2648.4,0.792]
[1727209372414,4.56489901,2648.8,2648.4,0.792]
[1727209372817,0.68478349,2648.7,2648.4,0.792]
[1727209372982,4.56489901,2648.8,2648.4,0.792]
[1727209373177,4.56489901,2648.8,2648.4,0.292]
[1727209373379,3.77537,2648.8,2648.4,0.292]
[1727209373608,3.77537,2648.8,2648.3,0.0382329]
[1727209373609,4.78545601,2648.8,2648.3,0.0382329]
[1727209373912,3.77555,2648.7,2648.3,0.0382329]
[1727209374288,3.77562,2648.6,2648.3,0.0382329]
[1727209374490,4.57996,2648.4,2648.3,0.0382329]
[1727209374692,5.415528,2648.4,2648.3,0.0382329]
[1727209375111,5.415528,2648.4,2648.3,0.09035877]
[1727209375433,5.965528,2648.4,2648.3,0.0382329]
[1727209375597,7.67708877,2648.4,2648.3,0.0382329]
[1727209375782,8.46661778,2648.4,2648.3,0.0382329]
[1727209376523,7.67688531,2648.4,2648.3,0.0382329]
[1727209376686,8.46641432,2648.4,2648.3,0.0382329]
[1727209377087,6.1001494,2648.4,2648.3,0.0382329]
[1727209377388,5.415528,2648.4,2648.3,0.0382329]
[1727209377791,5.415528,2648.4,2648.3,0.0871293]
[1727209378914,5.415528,2648.4,2648.3,0.0382329]
[1727209379618,5.415528,2648.4,2648.3,0.0871293]
[1727209379944,5.415528,2648.4,2648.3,0.0382329]
[1727209380266,8.46580626,2648.4,2648.3,0.0382329]
[1727209380401,8.46580626,2648.4,2648.3,0.0871293]
[1727209380599,8.46580626,2648.4,2648.3,0.0382329]
[1727209381422,6.75505701,2648.4,2648.3,0.0382329]
[1727209381737,6.64970448,2648.4,2648.3,0.0382329]
[1727209382235,5.965528,2648.4,2648.3,0.0871293]
[1727209382530,6.64959345,2648.4,2648.3,0.0871293]
[1727209382920,5.415528,2648.4,2648.3,0.0382329]
[1727209383311,5.965528,2648.4,2648.3,0.0871293]
[1727209383529,6.64950532,2648.4,2648.3,0.0871293]
[1727209383826,7.67549075,2648.4,2648.3,0.0382329]
[1727209384061,7.67549075,2648.4,2647.5,3.0382329]
[1727209384062,3.777,2647.6,2647.5,0.0382329]
[1727209384264,4.327,2647.6,2647.5,0.0382329]
[1727209384432,7.443402,2647.6,2647.5,0.08474249]
[1727209384635,5.5294372,2647.6,2647.5,0.08474249]
[1727209384833,5.5294372,2647.6,2647.5,0.0382329]
[1727209386817,5.5294372,2647.6,2647.5,0.08508886]
[1727209388733,4.58097,2647.7,2647.5,0.08508886]
[1727209388921,0.55,2647.8,2647.5,0.08508886]
[1727209389123,3.77686,2647.7,2647.5,0.08508886]
[1727209389861,0.55,2647.8,2647.5,0.08508886]
[1727209390164,4.32679,2647.8,2647.5,0.08508886]
[1727209390360,5.137136,2647.8,2647.5,0.08508886]
[1727209390929,3.77694,2647.7,2647.5,0.08508886]
[1727209391838,5.1509,2647.6,2647.5,0.08508886]
[1727209392434,5.1509,2647.6,2647.5,0.0382329]
[1727209393153,5.1509,2647.6,2647.5,0.08509342]
[1727209393364,6.1247186,2647.6,2647.5,0.0382329]
[1727209393983,6.1247186,2647.6,2647.5,0.08503416]
[1727209394152,6.1247186,2647.6,2647.5,0.0382329]
[1727209394361,6.1247186,2647.6,2647.5,0.08503416]
[1727209394586,6.1247186,2647.6,2647.5,0.0382329]
[1727209394881,6.80837,2647.6,2647.5,0.0382329]
[1727209395078,6.80837,2647.6,2647.5,0.08503416]
[1727209395079,5.3008186,2647.6,2647.5,0.08503416]
[1727209395353,4.56506509,2647.7,2647.5,0.0382329]
[1727209395354,3.77691,2647.7,2647.5,0.0382329]
[1727209395502,3.77691,2647.7,2647.5,0.08550817]
[1727209396271,3.77674,2647.8,2647.5,0.08550817]
[1727209396477,3.77645,2648.0,2647.5,0.08550817]
[1727209396679,14.30383927,2648.3,2647.6,3.77691]
[1727209396880,3.7761,2648.3,2647.7,0.7994]
[1727209397100,3.7761,2648.3,2647.7,4.62326356]
[1727209397320,0.53881251,2648.3,2647.7,0.7994]
[1727209397607,0.78812509,2648.3,2647.8,0.0470333]
[1727209397770,0.78812509,2648.3,2647.7,0.7994]
[1727209397771,3.77659,2647.9,2647.7,0.7994]
[1727209398103,7.55326,2647.9,2647.7,0.7994]
[1727209398301,7.55326,2647.9,2647.8,0.0470333]
[1727209398505,5.081916,2647.9,2647.5,0.8376329]
[1727209398802,1.305326,2647.9,2647.5,0.8376329]
[1727209398988,7.55383,2647.7,2647.5,0.0382329]
[1727209399298,7.55382,2647.7,2647.5,0.0382329]
[1727209399514,3.777,2647.6,2647.5,0.0382329]
[1727209400702,8.4397546,2647.7,2647.5,0.0382329]
[1727209401082,4.6627846,2647.7,2647.5,0.0382329]
[1727209401302,4.6627746,2647.7,2647.5,0.0382329]
[1727209402022,8.4397246,2647.7,2647.5,0.0382329]
[1727209402169,4.6627746,2647.7,2647.5,0.0382329]
[1727209403213,4.24327746,2647.6,2647.5,0.0382329]
[1727209403379,4.79327746,2647.6,2647.5,0.0382329]
[1727209403580,7.32819779,2647.6,2647.5,0.0382329]
[1727209403804,8.11632288,2647.6,2647.5,0.0382329]
[1727209404015,8.11632288,2647.6,2646.9,0.7994]
[1727209404016,3.77776,2647.1,2646.9,0.7994]
[1727209404312,8.10556,2647.1,2647.0,0.04563158]
[1727209404677,8.10556,2647.1,2646.7,1.8376329]
[1727209404678,3.77807,2646.9,2646.7,1.8376329]
[1727209405304,7.55617,2646.9,2646.8,0.04422318]
[1727209405512,8.916787,2646.9,2646.8,0.04422318]
[1727209405699,3.77814,2646.8,2646.7,1.0382329]
[1727209406220,7.5556,2647.1,2646.7,1.08263859]
[1727209406517,3.77809,2646.9,2646.7,1.0382329]
[1727209406926,4.60204,2646.8,2646.7,1.0382329]
[1727209407097,7.55617,2646.9,2646.7,1.0382329]
[1727209407735,5.15204,2646.8,2646.7,1.0382329]
[1727209407885,8.54455146,2646.8,2646.7,1.0382329]
[1727209408087,8.93884504,2646.8,2646.7,1.0382329]
[1727209408329,8.93877917,2646.8,2646.7,1.0382329]
[1727209408628,2.12738953,2646.8,2646.7,1.0382329]
[1727209408925,3.77808,2646.9,2646.7,1.0382329]
[1727209409132,3.77777,2647.1,2646.7,1.0382329]
[1727209409486,7.5561,2646.9,2646.7,1.0382329]
[1727209409681,3.77814,2646.8,2646.7,1.0382329]
[1727209409897,3.77801,2646.9,2646.7,1.0382329]
[1727209410429,3.77814,2646.8,2646.7,1.0382329]
[1727209411135,5.15204,2646.8,2646.7,1.0382329]
[1727209411338,8.04593563,2646.8,2646.7,1.0382329]
[1727209411625,9.80892248,2646.8,2646.7,1.0382329]
[1727209412023,2.8945365,2646.8,2646.7,1.0382329]
[1727209412228,3.77814,2646.8,2646.7,1.0382329]
[1727209412429,4.46296162,2646.8,2646.7,1.07884852]
[1727209412724,3.77814,2646.8,2646.7,1.07896258]
[1727209412926,4.46322659,2646.8,2646.7,1.07896258]
[1727209413082,4.46325772,2646.8,2646.7,1.07896258]
[1727209413289,4.79941737,2646.8,2646.7,1.07896258]
[1727209413512,8.67495408,2646.8,2646.7,1.07896258]
[1727209413789,8.67495408,2646.8,2646.7,1.0382329]
[1727209415587,9.06932551,2646.8,2646.7,1.0382329]
[1727209415813,3.77916,2646.1,2645.9,0.0382329]
[1727209416020,0.68547427,2646.0,2645.9,0.0382329]
[1727209416229,3.77928,2646.0,2645.9,0.0382329]
[1727209416427,3.77928,2646.0,2645.9,0.0770758]
[1727209416586,5.01427557,2646.0,2645.9,0.0382329]
[1727209416787,5.97737964,2646.0,2645.9,0.0382329]
[1727209416994,7.79402948,2646.0,2645.9,0.0382329]
[1727209417412,7.00482956,2646.0,2645.9,0.0382329]
[1727209417614,7.79329221,2646.0,2645.9,0.0382329]
[1727209417813,4.46427557,2646.0,2645.9,0.8210329]
[1727209418029,3.77928,2646.0,2645.9,0.8210329]
[1727209418190,3.77928,2646.0,2645.9,0.85884331]
[1727209418615,3.77928,2646.0,2645.9,0.8210329]
[1727209418929,3.77928,2646.0,2645.9,0.85888439]